Cogmind - Beta 13 @@@ ROGUE MODE // 2024.04.01 @ 13:48:30 Player: SLUGGY Result: Destroyed by 4G-RKV(R) with Subdweller Machine Gun Performance ------------- Evolutions (0) 0 Regions Visited (3) 600 Robots Destroyed (22) 110 Value Destroyed (423) 423 Prototype IDs (12) 240 Alien Tech Used (0) 0 Bonus (0) 0 TOTAL SCORE: 1373 Bonus ------- None Cogmind --------- Core Integrity 0/250 Matter 300/300 Energy 159/160 System Corruption 0% Temperature Cool (0) Movement Rolling (110) Location -10/Subcaves Parts ------- > --- POWER (1) -------- Light Nuclear Core > --- PROPULSION (2) --- Subdweller Monowheel > --- UTILITY (2) ------ Signal Interpreter Targeting Computer > --- WEAPON (2) ------- Subdweller Machine Gun Makeshift Hammer > --- INVENTORY (5) ---- Small Storage Unit Targeting Computer Gun Armor Subdweller Machine Gun Flamer Peak State ------------ > --- POWER ------------ Light Nuclear Core > --- PROPULSION ------- Subdweller Monowheel > --- UTILITY ---------- Signal Interpreter Targeting Computer > --- WEAPON ----------- Rocket Launcher Makeshift Hammer > --- INVENTORY -------- Small Storage Unit Targeting Computer Gun Armor Subdweller Machine Gun Flamer [Rating: 14] Favorites ----------- Power Light Nuclear Core Engine Ion Engine Power Core Light Nuclear Core Propulsion Hover Unit Treads Light Treads Leg Aluminum Leg Wheel Wheel Hover Unit Hover Unit Flight Unit Flight Unit Utility Targeting Computer Device Seismic Detector Storage Small Storage Unit Processor Targeting Computer Protection Utility Shielding Weapon Light Assault Rifle Energy Gun EM Pulse Gun Ballistic Gun Light Assault Rifle Launcher Rocket Launcher Special Weapon Mining Laser Impact Weapon Makeshift Hammer Build | -11 -10 -10 -10 ------- Run | Yrd Mat Min Sub Slots Evolved . | . . . . Power . | . . . . Propulsion . | . . . . Utility . | . . . . Weapon . | . . . . Parts Attached 45 | 23 13 3 6 Power 3 | 1 1 1 . Engine 2 | 1 1 . . Core 1 | . . 1 . Reactor . | . . . . Propulsion 26 | 18 5 1 2 Treads 4 | 4 . . . Leg 4 | 4 . . . Wheel 13 | 10 1 . 2 Hover 3 | . 2 1 . Flight 2 | . 2 . . Utility 6 | 2 4 . . Device 2 | 1 1 . . Storage 1 | 1 . . . Processor 2 | . 2 . . Hackware . | . . . . Protection 1 | . 1 . . Artifact . | . . . . Weapon 10 | 2 3 1 4 Energy Gun 1 | 1 . . . Energy Cannon . | . . . . Ballistic Gun 5 | 1 2 1 1 Ballistic Cannon . | . . . . Launcher 1 | . . . 1 Special Weapon 2 | . 1 . 1 Impact Weapon 1 | . . . 1 Slashing Weapon . | . . . . Piercing Weapon . | . . . . Special Melee Weapon . | . . . . Unidentified Prototypes . | . . . . Parts Lost 6 | . 3 1 2 Power 1 | . 1 . . Propulsion 2 | . . 1 1 Utility 1 | . 1 . . Weapon 2 | . 1 . 1 Highest Loss Streak 2 | . 2 1 1 To Critical Strikes . | . . . . Average Slot Usage (%) 95 | . 91 100 95 Engine 5 | . 12 5 . Core 8 | . . 8 14 Wheel 7 | . 14 . 7 Hover 15 | . 4 28 16 Flight 2 | . 8 . . Device 2 | . 9 . . Storage 2 | . 7 . . Processor 21 | . 5 28 28 Protection 1 | . 4 . . Ballistic Gun 15 | . 20 28 6 Launcher 3 | . . . 8 Special Weapon 5 | . 2 . 10 Impact Weapon 1 | . . . 2 Naked Turns . | . . . . Heaviest Build 15 | 15 15 7 12 Greatest Support 40 | 40 20 12 40 Greatest Overweight (x) 2 | 2 1 . 1 Average Overweight (x) . | 1 . . . Largest Inventory Capacity 8 | 8 8 5 5 Average Capacity 5 | 5 6 5 5 Most Carried 6 | 2 6 5 5 Average Carried 3 | . 2 4 4 Final Capacity 8 | 8 5 5 5 Final Carried 5 | . 5 5 5 Class Distribution -------------------- 56% | Scavenger-Mutant 43% | Mutant Dominant Class ---------------- Mutant | -10/Materials Scavenger-Mutant | -10/Mines Scavenger-Mutant | -10/Subcaves Resources | -11 -10 -10 -10 ----------- Run | Yrd Mat Min Sub Matter Collected 860 | 348 330 66 116 Remotely . | . . . . Salvage Created 631 | 103 339 149 40 Parts 53 | 10 27 10 6 Haulers Intercepted . | . . . . Recyclers Shooed 1 | . 1 . . Parts Field Recycled . | . . . . Retrieved Matter . | . . . . Parts Self-Destructed 5 | . . . 5 Prevented . | . . . . Kills | -11 -10 -10 -10 ------- Run | Yrd Mat Min Sub Combat Hostiles Destroyed 16 | . 7 5 4 Guns 13 | . 7 5 1 AOE 3 | . . . 3 Classes Destroyed 7 | 2 4 . 1 Tunneler 2 | 2 . . . Recycler 2 | 1 1 . . Operator 1 | . 1 . . Watcher 1 | . 1 . . Swarmer 9 | . 3 3 3 Grunt 6 | . 4 2 . Sentry 1 | . . . 1 Best Kill Streak 3 | 1 3 3 3 Combat Bots Only 3 | . 3 3 3 Max Kills in Single Turn 2 | 1 1 1 2 Gunslinging . | . . . . Exploded 2 | . . . 2 Melee . | . . . . Uniques/NPCs Destroyed . | . . . . Combat | -11 -10 -10 -10 -------- Run | Yrd Mat Min Sub Hostile Shots Fired 115 | . 64 30 21 Missed 42 | . 18 15 9 Damage Taken 971 | . 469 199 303 Core 253 | . 99 41 113 Absorbed by Shields . | . . . . Regen/Repaired (Parts) 35 | . 35 . . Core Remaining (%) 100 | 100 . . . Volleys Fired 132 | 12 61 18 41 Largest 2 | 2 2 2 1 Hottest 100 | 60 60 40 100 Shots Fired 176 | 14 85 36 41 Gun 138 | 14 85 36 3 Cannon . | . . . . Launcher 5 | . . . 5 Special 33 | . . . 33 Kinetic 122 | 2 81 36 3 Thermal 33 | . . . 33 Explosive 5 | . . . 5 Electromagnetic 16 | 12 4 . . Robot Hit Streak 14 | 3 14 10 5 Robot Miss Streak 5 | 1 5 4 1 Penetration Max . | . . . . Secondary Targets 1 | . . 1 . Max Gunslinging Chain 1 | . . 1 . Shots Hit Robots 92 | 9 50 26 7 Core Hits 38 | 4 20 11 3 Critical Kills . | . . . . Critical Parts Destroyed . | . . . . Critical Strikes 2 | 2 . . . Corrupt 2 | 2 . . . Melee Attacks 1 | . . . 1 Impact 1 | . . . 1 Slashing . | . . . . Piercing . | . . . . Sneak Attacks . | . . . . Combat Hostiles . | . . . . Follow-up Attacks . | . . . . Damage Inflicted 1249 | 119 575 213 342 Guns 975 | 119 575 213 68 Cannons . | . . . . Explosions 274 | . . . 274 Melee . | . . . . Ramming . | . . . . Kinetic 823 | 10 532 213 68 Thermal . | . . . . Explosive 274 | . . . 274 Electromagnetic 152 | 109 43 . . Impact . | . . . . Slashing . | . . . . Piercing . | . . . . Highest Corruption . | . . . . Average Corruption . | . . . . Corruption Purged . | . . . . Corruption Blocked . | . . . . Overload Shots . | . . . . Overflow Damage 68 | . . . 68 Projectiles . | . . . . Explosions 68 | . . . 68 Melee . | . . . . Knockbacks . | . . . . Impact . | . . . . Kinetic . | . . . . Secondary . | . . . . Self-Inflicted Damage 29 | . . . 29 Shots 1 | . . . 1 Rammed . | . . . . Targets Rammed . | . . . . Kicked . | . . . . Crushed . | . . . . Highest Temperature 52 | . 36 52 . Average Temperature 12 | . 9 16 . Received Heat Transfer 303 | . 144 129 30 Siege Activations . | . . . . Robots Corrupted . | . . . . Combat Hostiles . | . . . . Parts Fried 1 | 1 . . . Impact Corruptions . | . . . . Robots Melted . | . . . . Combat Hostiles . | . . . . Parts Melted . | . . . . Heat Transferred . | . . . . Parts Sabotaged . | . . . . Parts Stolen . | . . . . Parts Stripped . | . . . . Power Chain Reactions . | . . . . Alert | -11 -10 -10 -10 ------- Run | Yrd Mat Min Sub Peak Influence 210 | 15 210 167 . Initial 27 | . 9 27 . Average 78 | 5 83 123 . Maximum Alert Level 1 | . 1 . . Low Security (%) 99 | 100 98 100 . Level 1 . | . 1 . . Level 2 . | . . . . Level 3 . | . . . . Level 4 . | . . . . Level 5 . | . . . . High Security . | . . . . Max Security . | . . . . Squads Dispatched 1 | . 1 . . Investigation 1 | . 1 . . Extermination . | . . . . Reinforcement . | . . . . Assault . | . . . . Garrison . | . . . . Intercept . | . . . . Searches Triggered . | . . . . Construction Impeded . | . . . . Haulers Reinforced . | . . . . Active Scanning Responses . | . . . . Cargo Convoy Interrupts . | . . . . Stealth | -11 -10 -10 -10 --------- Run | Yrd Mat Min Sub Distress Signals . | . . . . Communications Jammed . | . . . . Distress Signals . | . . . . Times Spotted 30 | . 14 6 10 Peak Tracking Total 5 | . 3 3 5 Tactical Retreats 3 | . 1 1 1 Traps | -11 -10 -10 -10 ------- Run | Yrd Mat Min Sub Traps Triggered 2 | . . . 2 Indirectly . | . . . . Trap Hack Attempts . | . . . . Triggered . | . . . . Disarmed . | . . . . Reprogrammed . | . . . . Reused . | . . . . Traps Extracted . | . . . . Installed . | . . . . Triggered . | . . . . Machines | -11 -10 -10 -10 ---------- Run | Yrd Mat Min Sub Machines Disabled 1 | . . . 1 Max in Single Turn 1 | . . . 1 Machines Repaired . | . . . . Machines Dismantled . | . . . . Machines Sabotaged . | . . . . Overloaded Fab Kills . | . . . . Hacking | -11 -10 -10 -10 --------- Run | Yrd Mat Min Sub Machines Accessed 8 | . 6 . 2 Terminals 4 | . 4 . . Fabricators . | . . . . Repair Stations 1 | . 1 . . Recycling Units 1 | . 1 . . Scanalyzers . | . . . . Garrison Access . | . . . . Total Hacks 29 | . 17 . 12 Successful 24 | . 12 . 12 Failed 5 | . 5 . . Catastrophic 1 | . 1 . . Database Lockouts . | . . . . Manual 3 | . 2 . 1 Terminals 12 | . 12 . . Fabricators . | . . . . Repair Stations 2 | . 2 . . Recycling Units 3 | . 3 . . Scanalyzers . | . . . . Garrison Access . | . . . . Terminal Hacks 19 | . 7 . 12 Record 11 | . . . 11 Robot Analysis 1 | . 1 . . Prototype ID Bank 1 | . 1 . . Locate Traps 1 | . 1 . . Dispatch Records 1 | . 1 . . Hauler Manifests 1 | . 1 . . Registered Components 1 | . 1 . . Zone Layout 1 | . 1 . . Derelict Proto ID Bank 1 | . . . 1 Fabricator Hacks . | . . . . Repair Station Hacks 2 | . 2 . . Scan Component 1 | . 1 . . Repair 1 | . 1 . . Recycling Unit Hacks 3 | . 3 . . Recycle Component 1 | . 1 . . Process 1 | . 1 . . Retrieve Matter 1 | . 1 . . Scanalyzer . | . . . . Garrison Access Hacks . | . . . . Unauthorized Hacks . | . . . . Terminals . | . . . . Fabricators . | . . . . Repair Stations . | . . . . Recycling Units . | . . . . Scanalyzers . | . . . . Garrison Access . | . . . . Data Cores Recovered 1 | . 1 . . Used 1 | . 1 . . Hacking Detections 6 | . 6 . . Full Trace Events 3 | . 3 . . Feedback Events . | . . . . Feedback Blocked . | . . . . Robot Schematics Acquired . | . . . . Robots Built . | . . . . Authchips . | . . . . Time . | . . . . Total Robot Build Rating . | . . . . Part Schematics Acquired . | . . . . Parts Built . | . . . . Authchips . | . . . . Time . | . . . . Total Part Build Rating . | . . . . Parts Repaired 1 | . 1 . . Time 26 | . 26 . . Parts Recycled 1 | . 1 . . Recycled Matter 32 | . 32 . . Retrieved Matter 32 | . 32 . . Retrieved Components . | . . . . Parts Scanalyzed . | . . . . Part Schematics Acquired . | . . . . Parts Damaged . | . . . . Bothacking | -11 -10 -10 -10 ------------ Run | Yrd Mat Min Sub Used RIF Installer . | . . . . Robots Hacked . | . . . . Non-combat . | . . . . Combat . | . . . . Robot Hacks Applied . | . . . . Relay Couplers Released . | . . . . Fabnet Peak Effective % . | . . . . Robots Rewired . | . . . . Allies Hacked . | . . . . Hacks Repelled . | . . . . Allies | -11 -10 -10 -10 -------- Run | Yrd Mat Min Sub Total Allies 1 | . . 1 . Largest Group 1 | . . 1 . Highest-Rated Group 31 | . . 31 . Highest-Rated Ally 31 | . . 31 . Total Orders . | . . . . Ally Attacks . | . . . . Total Damage . | . . . . Kills . | . . . . Allies Corrupted . | . . . . Allies Melted . | . . . . Intel | -11 -10 -10 -10 ------- Run | Yrd Mat Min Sub Robot Analysis Total 1 | . 1 . . Derelict Logs Recovered 3 | . . 2 1 Drone Launches . | . . . . Drone Recoveries . | . . . . Exploration | -11 -10 -10 -10 ------------- Run | Yrd Mat Min Sub Turns Passed 2097 | 301 515 443 838 Spaces Moved 2345 | 181 546 675 943 Core 109 | 109 . . . Treads 3 | 3 . . . Legs 28 | 28 . . . Wheels 482 | 41 187 . 254 Hover 1451 | . 87 675 689 Flight 272 | . 272 . . Fastest Speed 37 | 50 37 56 56 Average Speed 66 | 122 55 56 70 Slowest Speed 160 | 160 95 56 120 Overloaded Moves . | . . . . Propulsion Burnouts . | . . . . Robots Hopped 3 | . 3 . . Cave-ins Triggered . | . . . . Exploration Rate (%) 55 | 7 61 99 55 Regions Visited 3 Branch Regions 2 Pre-discovered Areas . | . . . . Known Exits Taken 2 | . 1 1 . Unknown Exits Taken 1 | 1 . . . Scrap Searched 2 | . . 1 1 Spaces Dug . | . . . . Terrain Destroyed 24 | . . . 24 Melee . | . . . . Projectile . | . . . . AOE 24 | . . . 24 Terrain Rammed . | . . . . Walls Destroyed . | . . . . Machines Disabled . | . . . . Actions | -11 -10 -10 -10 --------- Run | Yrd Mat Min Sub Total 2654 | 254 684 711 1005 Wait 42 | . 32 10 . Move 2336 | 180 539 674 943 Hop 3 | . 3 . . Pick Up 54 | 23 22 3 6 Fast Attach 5 | . 2 . 3 Attach 34 | 23 9 1 1 Detach . | . . . . Swap 6 | . 2 2 2 Drop 41 | 16 14 3 8 Fire 132 | 12 61 18 41 Melee 1 | . . . 1 Ram . | . . . . Kick . | . . . . Crush . | . . . . Escape Stasis . | . . . . Rewire . | . . . . Trap . | . . . . Miscellaneous . | . . . . Route ------- -11/Scrapyard -10/Materials (discovered 3 exits: *Mat / *Min x2) -10/Mines (discovered 3 exits: *Mat x2 / *Sub) -10/Subcaves (discovered 2 exits: *Mat x2) History --------- Turn | Location | Event 3 | -11/Scrapyard | Discovered new exit (range 15) 302 | -11/Scrapyard | Entered Materials 306 | -10/Materials | Build established: Mutant 517 | -10/Materials | Repaired Wheel 578 | -10/Materials | Discovered new exit (range 12) 632 | -10/Materials | Discovered new exit (range 14) 664 | -10/Materials | Discovered new exit (range 16) 817 | -10/Materials | Identified exit to Mines 817 | -10/Materials | Entered Mines 836 | -10/Mines | Learned location of 1 exit from Materials 889 | -10/Mines | Build established: Scavenger-Mutant 929 | -10/Mines | Learned Materials terminal intel 935 | -10/Mines | Discovered new exit (range 15) 994 | -10/Mines | Core integrity fell below 50% 1029 | -10/Mines | Identified exit to Materials 1067 | -10/Mines | Received a Rocket Launcher from a helpful Derelict 1084 | -10/Mines | Received a Mining Laser from a helpful Derelict 1160 | -10/Mines | Discovered exit to Materials (range 6) 1255 | -10/Mines | Discovered new exit (range 10) 1259 | -10/Mines | Identified exit to Subcaves 1260 | -10/Mines | Entered Subcaves 1284 | -10/Subcaves | Shifting Twisted Machinery released Sub. Optics 1291 | -10/Subcaves | Shifting Twisted Machinery released Mak. Leg 1292 | -10/Subcaves | Shifting Twisted Machinery released Flamer 1333 | -10/Subcaves | Discovered new exit (range 9) 1337 | -10/Subcaves | Identified exit to Materials 1377 | -10/Subcaves | Discovered exit to Materials (range 9) 1437 | -10/Subcaves | A swath of the cavern ceiling suddenly collapsed 1478 | -10/Subcaves | Visited Clippyterm 1515 | -10/Subcaves | Learned Materials trap positions 1623 | -10/Subcaves | Visited 4L-MR0's lab 1632 | -10/Subcaves | Found Prototype Protection 1634 | -10/Subcaves | Identified Gun Armor 1917 | -10/Subcaves | Shifting Twisted Machinery released Sub. Laser 1927 | -10/Subcaves | Shifting Twisted Machinery released Sub. Beam Cannon 1940 | -10/Subcaves | Shifting Twisted Machinery released Mak. Hammer 1997 | -10/Subcaves | Core integrity fell below 20% 2040 | -10/Subcaves | Build established: Mutant 2098 | -10/Subcaves | Destroyed by 4G-RKV(R) with Subdweller Machine Gun Last Messages --------------- 01752_ Acquired Sub. Monowheel. 01754_ Dropped Hover Unit. 01761_ Subatomizers dissect the Lgt. Assault Rifle. 01793_ Acquired Sub. Monowheel. 01888_ Dropped Sub. Beam Cannon. 01889_ Acquired Sub. Machine Gun. Sub. Laser falls loose from the Twisted Machinery. 01922_ Sub. Monowheel shoots sparks and powers down. 01923_ Dropped Broken Sub. Monowheel. Sub. Beam Cannon falls loose from the Twisted Machinery. Mak. Hammer falls loose from the Twisted Machinery. 01968_ Dropped Mining Laser. 01969_ Acquired Mak. Hammer. 01999_ Rocket Launcher destroyed. 02005_ Y-45 Defender destroyed. 02009_ Lgt. Treads fries itself beyond repair. 02020_ Acquired 35 matter. 02083_ Acquired Sub. Machine Gun. 02084_ 4G-RKV(R): "WEHOME!" 02092_ Acquired 39 matter. Map ----- +----------------------------------------------------+ | [ #????? ???????????????????????? | | #??????? ??????????????????????? | | ####???? # ??????????????????????? | | ### #???# #? ??????????????????????? | | # ## ##?# #??????????????????????????? | | # # ## #???????????????????????????? | | ##### ## #?????????????????????????????? | | ????## ## ###?????????????????????????????? | | ?????# ### ##???????????????????????????????? | | ?????# ###?# ##???????????????????????????????? | | ?????###???# #####???????????????????????????? | | ???????????# ## ##??###?????????????????????? | | ???????????## ### ##????????????????????? | | ????????????### ###??????????????????? | | ??????????????### # #???????????????? | | ????????????###?# ??????????????? | | ???????????## #### ??????????????? | | ???????????# ### # ?????????????????? | | ???????????# ## #??????????????????? | | ???????????# ##? #??????????????????? | | ???????????# ##??? ??????????????????? | | ???????????## ### #??????????????????????? | | ????????????###?## #??????????????????????? | | ?????????????????## ## #??????????????????????? | | ??????????????????# ### #??????????????????????? | | ??????????????????##### @#??????????????????????? | | ???????#???? ?????????# #??????????????????????? | | ?????? ##?? ?????????# #??????????????????????? | | ????? ## ????????## ##?????????????????????? | | #???# ?????????# ##????????????????????? | | #### ?????????# % # #??????????????????? | | ?????????# #??????????????????? | | #??????????????## """ ??????????????? | | ##???????????????### ###" ??????????????? | | ##??????????????????? ##??????????????????? | | ##???????????????????? #??????????????????? | | #?????????????????????R""##??????????????????? | | #?????????????????????""""???????????????????? | | # ""???????????????????"""""??????????????????? | | ? " """"??????????????????""""???????????????????? | | ?#####" ????????????????????????????????????????? | | ???????" ????????????????????????????????????????? | | ?????????????????????????????????????????????????? | | ?????????????????????????????????????????????????? | | ?????????????????????????????????????????????????? | | ""#??????????????????????????????????????????????? | | "#???????????????????????????????????????????????? | | "#???????????????????????????????????????????????? | | #???????????????????????????????????????????????? | | #???????????????????????????????????????????????? | +----------------------------------------------------+ Best States ------------- Heat Dissipation 39 Energy Generation 14 Energy Capacity 250 Matter Stores 300 Matter Capacity 300 Sight Range 16 Terrain Scan Density 10 Utility Shielding 33 Evasion (%) 62 Targeting Accuracy 5 Recoil Reduction 2 Item Schematics ----------------- None Robot Schematics ------------------ None Fabricated ------------ Nothing Alien Tech Used ----------------- None Achievements -------------- Librarian Universal Adapter Challenges ------------ None Game ------ Seed MobileDecoyDrive Manual? 0 Play Time 00:32:01 Cumulative 8.2 hours Start 2024.04.01 @ 13:14:47 End 2024.04.01 @ 13:48:30 Sessions 1 Manual Loads 0 Difficulty Rogue Special Mode None Game No. 17 Rogue 17 Adventurer 0 Explorer 0 Win Type - Total 0 Types 0/0/0/0/0/0/0/0/0 Lore% 3 Gallery% 13 Achievement% 13 Wizard Run 0 Options --------- Layout 0 ASCII 0 Keyboard 0 Movement Mouse Keybinds 0 Fullscreen 1 Font 24/Smallcaps Map View 76x50 Zoom Use 0% Tactical HUD 1 Map Filters NONE Filters NONE Steam 1 RUN: 77902c15-f058-44c2-a401-9fed47fe656f